{"text_format":"1","workbook":"xlsx","n_sheets":1,"sheets":["Teilnahme-Liste"],"not_rendered":{"charts":0,"images":1,"macros":1,"external_links":0,"defined_names":2,"comments":0,"pivot_tables":0},"unopened":[],"bounds":{"document_bytes":16777216,"sheet_cells":100000,"rows_first":2000,"rows_last":500,"rows_between":2000,"halvings":0,"cell_chars":16384,"cell_head_chars":4096},"cells_cut":0,"cells_raw":0,"read":"whole","date_system":"1900"}

{"sheet":"Teilnahme-Liste","index":0,"n_rows":50,"n_cols":32,"rows_kept":50,"cut":false,"hidden":false,"merged":[[0,1,0,4],[3,5,3,6],[10,15,11,15],[0,8,0,9],[9,14,11,14],[8,5,8,8],[9,15,9,16],[10,16,11,16],[5,5,7,7],[29,18,29,21],[47,2,47,11],[9,2,11,2],[31,1,41,10],[9,1,11,1],[9,3,11,3],[9,17,9,21]]}
[null,"ANLAGE - Teilnehmer-/Qualifizierungsplan"]
[]
[null,null,"Stammdaten:"]
[null,null,"Antrags-Nr. (falls bereits bekannt):"]
[null,null,"Name des Unternehmens/Vereins/Trägers KJH:"]
[null,null,"Einstufung des Unternehmens/Vereins/Trägers KJH:",null,null,"Hinweis zur Einstufung: \nFür Anträge von Unternehmen nach der Richtlinie vom 30.03.2017 (RL-Punkt II.2) ist die Einstufung als großes Unternehmen (max. Förderung bis zu 50 %) zu verwenden.",null,null,"kleines Untern./Verein/Träger KJH","mittleres Untern./Verein/Träger KJH","großes Untern./Verein/Träger KJH","nicht wirtschaftlich tätiger Verein (nicht zutreffend bei Maßnahmen der Kinder und Jugendhilfe) "]
[null,null,"Brbg. Servicepaket mit besonders erheblicher arbeitspolitischer Bedeutung?:"]
[]
[]
[null,"Zahl der Teilnehmenden","Personalnummer des/der Teilnehmenden","Tätigkeit im Unternehmen/Verein","Qualifizierung 1\n\n\n (Zeitraum/Thema/\nAusgaben pro TN)","Qualifizierung 2 \n\n\n(Zeitraum/Thema/\nAusgaben pro TN)","Qualifizierung 3 \n\n\n(Zeitraum/Thema/\nAusgaben pro TN)","Qualifizierung 4\n\n\n (Zeitraum/Thema/\nAusgaben pro TN)","Qualifizierung 5 \n\n\n(Zeitraum/Thema/\nAusgaben pro TN)","Qualifizierung 6 \n\n\n(Zeitraum/Thema/\nAusgaben pro TN)","Qualifizierung 7 \n\n\n(Zeitraum/Thema/\nAusgaben pro TN)","Qualifizierung 8\n\n\n (Zeitraum/Thema/\nAusgaben pro TN)","Qualifizierung 9 \n\n\n(Zeitraum/Thema/\nAusgaben pro TN)","Qualifizierung 10\n\n\n (Zeitraum/Thema/\nAusgaben pro TN)","Gesamt-Ausgaben pro TN","Finanzierung",null,"Auszahlungsplan der Fördermittel"]
[null,null,null,null,null,null,null,null,null,null,null,null,null,null,null,"Fördermittel ","Eigenmittel ","Jahr","Jahr","Jahr","Jahr","Jahr"]
[null,null,null,null,null,null,null,null,null,null,null,null,null,null,null,null,null,"20_ _","20_ _","20_ _","20_ _","20_ _",null,null,null,null,null,null,null,"Prozentsatz","Prozentsatz","max Satz"]
[null,{"$f":"IF(C13<>\"\",1,0)","v":0},null,null,null,null,null,null,null,null,null,null,null,null,{"$f":"SUM(E13:N13)","v":0},{"$f":"IF(O13*AE13>AF13,AF13,O13*AE13)","v":0},{"$f":"O13-P13","v":0},null,null,null,null,null,null,null,null,null,null,null,null,{"$f":"IF($D$6=\"kleines Untern./Verein/Träger KJH\",$O13*70/100,IF($D$6=\"mittleres Untern./Verein/Träger KJH\",$O13*60/100,IF($D$6=\"großes Untern./Verein/Träger KJH\",$O13*50/100,IF($D$6=\"nicht wirtschaftlich tätiger Verein (nicht zutreffend bei Maßnahmen der Kinder und Jugendhilfe) \",$O13*90/100,0))))","v":0},{"$f":"IF($D$6=\"kleines Untern./Verein/Träger KJH\",70%,IF($D$6=\"mittleres Untern./Verein/Träger KJH\",60%,IF($D$6=\"großes Untern./Verein/Träger KJH\",50%,IF($D$6=\"nicht wirtschaftlich tätiger Verein (nicht zutreffend bei Maßnahmen der Kinder und Jugendhilfe) \",90%,0))))","v":0},{"$f":"IF($D$7=\"\",3000,IF($D$7=\"Nein\",3000,10000))","v":3000}]
[null,{"$f":"IF(C14<>\"\",B13+1,0)","v":0},null,null,null,null,null,null,null,null,null,null,null,null,0,{"$f":"IF(O14*AE14>AF14,AF14,O14*AE14)","v":0},{"$f":"O14-P14","v":0},null,null,null,null,null,null,null,null,null,null,null,null,0,{"$f":"IF($D$6=\"kleines Untern./Verein/Träger KJH\",70%,IF($D$6=\"mittleres Untern./Verein/Träger KJH\",60%,IF($D$6=\"großes Untern./Verein/Träger KJH\",50%,IF($D$6=\"nicht wirtschaftlich tätiger Verein (nicht zutreffend bei Maßnahmen der Kinder und Jugendhilfe) \",90%,0))))","v":0},{"$f":"IF($D$7=\"\",3000,IF($D$7=\"Nein\",3000,10000))","v":3000}]
[null,{"$f":"IF(C15<>\"\",B14+1,0)","v":0},null,null,null,null,null,null,null,null,null,null,null,null,0,0,0,null,null,null,null,null,null,null,null,null,null,null,null,0,0,3000]
[null,0,null,null,null,null,null,null,null,null,null,null,null,null,0,0,0,null,null,null,null,null,null,null,null,null,null,null,null,0,0,3000]
[null,0,null,null,null,null,null,null,null,null,null,null,null,null,0,0,0,null,null,null,null,null,null,null,null,null,null,null,null,0,0,3000]
[null,0,null,null,null,null,null,null,null,null,null,null,null,null,0,0,0,null,null,null,null,null,null,null,null,null,null,null,null,0,0,3000]
[null,0,null,null,null,null,null,null,null,null,null,null,null,null,0,0,0,null,null,null,null,null,null,null,null,null,null,null,null,0,0,3000]
[null,0,null,null,null,null,null,null,null,null,null,null,null,null,0,0,0,null,null,null,null,null,null,null,null,null,null,null,null,0,0,3000]
[null,0,null,null,null,null,null,null,null,null,null,null,null,null,0,0,0,null,null,null,null,null,null,null,null,null,null,null,null,0,0,3000]
[null,0,null,null,null,null,null,null,null,null,null,null,null,null,0,0,0,null,null,null,null,null,null,null,null,null,null,null,null,0,0,3000]
[null,0,null,null,null,null,null,null,null,null,null,null,null,null,0,0,0,null,null,null,null,null,null,null,null,null,null,null,null,0,0,3000]
[null,0,null,null,null,null,null,null,null,null,null,null,null,null,0,0,0,null,null,null,null,null,null,null,null,null,null,null,null,0,0,3000]
[null,{"$f":"IF(C25<>\"\",B24+1,0)","v":0},null,null,null,null,null,null,null,null,null,null,null,null,0,0,0,null,null,null,null,null,null,null,null,null,null,null,null,0,0,3000]
[null,{"$f":"IF(C26<>\"\",B25+1,0)","v":0},null,null,null,null,null,null,null,null,null,null,null,null,0,{"$f":"IF(O26*AE26>AF26,AF26,O26*AE26)","v":0},{"$f":"O26-P26","v":0},null,null,null,null,null,null,null,null,null,null,null,null,0,0,3000]
[null,{"$f":"IF(C27<>\"\",B26+1,0)","v":0},null,null,null,null,null,null,null,null,null,null,null,null,{"$f":"SUM(E27:N27)","v":0},{"$f":"IF(O27*AE27>AF27,AF27,O27*AE27)","v":0},{"$f":"O27-P27","v":0},null,null,null,null,null,null,null,null,null,null,null,null,0,0,3000]
[null,0,null,null,null,null,null,null,null,null,null,null,null,null,0,{"$f":"IF(O28*AE28>AF28,AF28,O28*AE28)","v":0},0,null,null,null,null,null,null,null,null,null,null,null,null,0,0,3000]
[null,null,"Summe:",null,{"$f":"SUM(E13:E28)","v":0},0,0,0,0,0,0,0,0,0,0,0,0,0,0,0,0,0]
[null,null,null,null,null,null,null,null,null,null,null,null,null,null,null,null,null,"Summe:",{"$f":"SUM(R29:V29)","v":0}]
[]
[]
[]
[]
[]
[]
[]
[]
[]
[]
[]
[]
[]
[]
[]
[]
[]
[]
[]
[null,null,"kleines Untern./Verein/Träger KJH","mittleres Untern./Verein/Träger KJH","großes Untern./Verein/Träger KJH","nicht wirtschaftlich tätiger Verein"]